Cogmind - Beta 15 @@@ ROGUE MODE // 2025.10.14 @ 13:07:04 Player: aliser Result: Destroyed by P-60 Hacker with Shock Rifle Performance ------------- Evolutions (1) 500 Regions Visited (4) 800 Robots Destroyed (71) 355 Value Destroyed (2300) 2300 Prototype IDs (1) 20 Alien Tech Used (0) 0 Bonus (831) 831 TOTAL SCORE: 4806 Bonus ------- High Alert Combat Kills 65 Follower Combat Kills 66 Entered Garrisons 200 Used RIF Installer 500 Cogmind --------- Core Integrity 0/400 Matter 300/300 Energy 179/250 System Corruption 11% Temperature Cool (0) Movement Treading (160) Location -9/Garrison Parts ------- > --- POWER (1) -------- Ion Engine > --- PROPULSION (3) --- Light Treads Light Treads Aluminum Leg > --- UTILITY (3) ------ Cooling System Large Storage Unit Improved Light Armor Plating > --- WEAPON (2) ------- Beam Rifle Beam Rifle > --- INVENTORY (15) --- Micro Nuclear Core Sensor Array Signal Interpreter Improved Light Armor Plating Relay Coupler [NC] (21) Relay Coupler [Swarmer] (31) Relay Coupler [Grunt] (22) Relay Coupler [Demolisher] (24) Relay Coupler [Hunter] (17) Relay Coupler [Behemoth] (8) Shock Rifle Heavy Assault Rifle Heavy Assault Rifle Mini Grenade Launcher Flail Peak State ------------ > --- POWER ------------ Improved Ion Engine > --- PROPULSION ------- Aluminum Leg Aluminum Leg Improved Aluminum Leg > --- UTILITY ---------- Large Storage Unit Visual Processing Unit Drone Bay > --- WEAPON ----------- Improved Medium Laser Improved Medium Laser > --- INVENTORY -------- Improved Ion Engine Aluminum Leg Cooling System Cooling System Sensor Array Signal Interpreter Improved Terrain Scanner ECM Suite Shield Generator Improved Medium Laser Improved Medium Laser Light EM Pulse Cannon Mini Grenade Launcher Flail [Rating: 22] Favorites ----------- Power Ion Engine Engine Ion Engine Propulsion Improved Aluminum Leg Treads Light Treads Leg Improved Aluminum Leg Utility Large Storage Unit Device Sensor Array Storage Large Storage Unit Processor Visual Processing Unit Protection Backup Plating I Weapon Improved Medium Laser Energy Gun Improved Medium Laser Energy Cannon Light EM Pulse Cannon Ballistic Gun Light Assault Rifle Ballistic Cannon Light Cannon Launcher Mini Grenade Launcher Special Weapon Welding Torch Impact Weapon Flail Build | -11 -10 -9 -9 -9 ------- Run | Yrd Mat Mat Sto Gar Slots Evolved 2 | . . 2 . . Power . | . . . . . Propulsion 1 | . . 1 . . Utility 1 | . . 1 . . Weapon . | . . . . . Parts Attached 63 | 8 7 21 4 23 Power 10 | 2 1 3 1 3 Engine 10 | 2 1 3 1 3 Core . | . . . . . Reactor . | . . . . . Propulsion 19 | 2 2 5 1 9 Treads 6 | 2 . . . 4 Leg 13 | . 2 5 1 5 Wheel . | . . . . . Hover . | . . . . . Flight . | . . . . . Utility 18 | 2 2 7 1 6 Device 8 | 1 1 3 1 2 Storage 2 | 1 . 1 . . Processor 3 | . . 3 . . Hackware . | . . . . . Protection 5 | . 1 . . 4 Artifact . | . . . . . Weapon 16 | 2 2 6 1 5 Energy Gun 8 | 1 . 3 1 3 Energy Cannon 1 | . . 1 . . Ballistic Gun 3 | 1 . . . 2 Ballistic Cannon 1 | . 1 . . . Launcher 1 | . . 1 . . Special Weapon 1 | . . 1 . . Impact Weapon 1 | . 1 . . . Slashing Weapon . | . . . . . Piercing Weapon . | . . . . . Special Melee Weapon . | . . . . . Unidentified Prototypes 1 | . . 1 . . Corrupted Parts 1 | . . . . 1 System Corruption 1 | . . . . 1 Parts Lost 19 | . . 4 2 13 Power 3 | . . . 1 2 Propulsion 10 | . . 3 1 6 Utility 3 | . . 1 . 2 Weapon 3 | . . . . 3 Highest Loss Streak 4 | . . 1 1 4 To Critical Strikes . | . . . . . Average Backups 11 | 1 7 11 14 13 Power 1 | . 1 1 1 1 Propulsion 1 | . 1 1 . . Utility 6 | . 3 6 7 8 Weapon 2 | 1 1 2 4 3 Tool/Special . | . . . . . Unused Backups 16 | . 2 3 . 11 Power 1 | . . . . 1 Propulsion 1 | . . 1 . . Utility 10 | . 1 1 . 8 Weapon 4 | . 1 1 . 2 Tool/Special . | . . . . . Average Slot Usage (%) 94 | . 99 90 96 92 Engine 11 | . 14 11 8 10 Treads 5 | . 2 . . 13 Leg 24 | . 25 28 32 17 Device 9 | . 8 10 7 9 Storage 11 | . 14 11 11 11 Processor 3 | . . 7 14 1 Protection 3 | . 5 . . 5 Energy Gun 10 | . 13 7 17 7 Energy Cannon 1 | . . 1 . 2 Ballistic Gun 2 | . . . . 6 Ballistic Cannon 5 | . 12 3 . . Impact Weapon 4 | . 1 8 . 3 Peak Build Rating 22 | 9 12 20 22 19 Average Rating 14 | 5 10 16 19 16 On Entrance 11 | . 9 11 18 21 Naked Turns . | . . . . . Heaviest Build 39 | 15 16 33 39 38 Greatest Support 40 | 40 40 39 33 40 Greatest Overweight (x) 5 | 1 5 1 1 3 Average Overweight (x) . | . . . . . Largest Inventory Capacity 15 | 8 8 15 15 15 Average Capacity 11 | 7 8 12 15 15 Most Carried 15 | 4 8 15 15 15 Average Carried 11 | 1 7 11 14 13 Final Capacity 15 | 8 8 15 15 15 Final Carried 15 | 2 8 15 13 15 Class Distribution -------------------- 71% | Mutant 28% | Scavenger-Mutant Dominant Class ---------------- Mutant | -10/Materials Mutant | -9/Materials Mutant | -9/Storage Scavenger-Mutant | -9/Garrison Resources | -11 -10 -9 -9 -9 ----------- Run | Yrd Mat Mat Sto Gar Matter Collected 1503 | 193 222 403 107 578 Remotely . | . . . . . Salvage Created 2337 | 22 269 838 373 835 Parts 144 | 4 27 46 14 53 Haulers Intercepted 5 | . 1 1 3 . Recyclers Shooed 1 | . 1 . . . Parts Field Recycled . | . . . . . Retrieved Matter . | . . . . . Parts Self-Destructed . | . . . . . Prevented . | . . . . . Kills | -11 -10 -9 -9 -9 ------- Run | Yrd Mat Mat Sto Gar Combat Hostiles Destroyed 52 | . 8 19 3 22 Melee 1 | . . 1 . . Guns 32 | . 3 11 2 16 Cannons 10 | . 4 3 . 3 AOE 5 | . 1 1 . 3 Classes Destroyed 13 | 1 7 3 . 2 Worker 2 | . 1 1 . . Builder 3 | . 1 2 . . Tunneler 1 | 1 . . . . Hauler 5 | . 1 1 3 . Recycler 2 | . . 1 1 . Operator 3 | . 2 . 1 . Watcher 3 | . 1 1 1 . Swarmer 13 | . 6 4 . 3 Grunt 25 | . 2 11 1 11 Brawler 2 | . . 1 . 1 Duelist 1 | . . . . 1 Sentry 8 | . . 3 2 3 Programmer 3 | . . . . 3 Best Kill Streak 8 | 1 6 7 2 8 Combat Bots Only 8 | . 2 7 2 8 Max Kills in Single Turn 2 | 1 1 1 2 2 Gunslinging 1 | . . . . 1 Exploded 2 | . 1 1 . 2 Melee 1 | . . 1 . . Uniques/NPCs Destroyed . | . . . . . Combat | -11 -10 -9 -9 -9 -------- Run | Yrd Mat Mat Sto Gar Hostile Shots Fired 351 | . 42 109 15 185 Missed 79 | . 7 28 2 42 Hits 272 | . 35 81 13 143 Melee 11 | . . 5 . 6 Projectile 261 | . 35 76 13 137 Critical Strikes 13 | . 2 2 . 9 Damage Taken 3484 | . 313 996 287 1888 Core 455 | . 54 148 44 209 Absorbed by Shields 86 | . . 14 . 72 Regen/Repaired (Parts) 93 | . 4 89 . . Core Remaining (%) 89 | 100 78 . . . Volleys Fired 210 | 2 46 63 26 73 Largest 2 | 2 2 2 2 2 Hottest 112 | 60 70 112 112 112 Shots Fired 381 | 4 86 98 49 144 Gun 285 | 4 42 68 46 125 Cannon 79 | . 44 21 . 14 Launcher 13 | . . 5 3 5 Special 4 | . . 4 . . Kinetic 91 | 2 44 5 . 40 Thermal 203 | . . 72 46 85 Explosive 13 | . . 5 3 5 Electromagnetic 74 | 2 42 16 . 14 Robot Hit Streak 15 | 1 7 15 12 13 Robot Miss Streak 5 | 2 4 5 2 2 Penetration Max . | . . . . . Secondary Targets 7 | . . 1 1 5 Max Gunslinging Chain 1 | . . 1 1 1 Shots Hit Robots 238 | 2 34 73 30 99 Core Hits 91 | 1 14 25 10 41 Critical Kills . | . . . . . Critical Parts Destroyed 3 | . . 3 . . Critical Strikes 14 | . 2 6 1 5 Burn 8 | . . 3 1 4 Blast 1 | . 1 . . . Corrupt 2 | . 1 . . 1 Smash 3 | . . 3 . . Melee Attacks 80 | . 13 39 3 25 Impact 80 | . 13 39 3 25 Slashing . | . . . . . Piercing . | . . . . . Sneak Attacks 2 | . 1 1 . . Combat Hostiles . | . . . . . Follow-up Attacks . | . . . . . Damage Inflicted 4504 | 28 602 1557 609 1708 Guns 2855 | 28 180 842 474 1331 Cannons 618 | . 252 194 . 172 Explosions 497 | . 36 121 135 205 Melee 525 | . 134 391 . . Ramming . | . . . . . Kinetic 646 | 13 252 . . 381 Thermal 2345 | . 36 885 474 950 Explosive 427 | . . 87 135 205 Electromagnetic 561 | 15 180 194 . 172 Impact 525 | . 134 391 . . Slashing . | . . . . . Piercing . | . . . . . Highest Corruption 9 | . . 3 3 9 Average Corruption 3 | . . 2 3 3 Corruption Purged . | . . . . . Corruption Blocked . | . . . . . Effects 48 | . . 6 7 35 Message Errors 13 | . . 1 2 10 Matter Fused 8 | . . 3 . 5 Heat Flow Errors 10 | . . . . 10 Energy Discharges 3 | . . . 1 2 Data Loss (minor) 2 | . . . . 2 Data Loss (major) 3 | . . 2 1 . Misfires 5 | . . . 1 4 Alerts 1 | . . . . 1 Weapon Failures 3 | . . . 2 1 Overload Shots . | . . . . . Overflow Damage 273 | . 59 200 14 . Projectiles . | . . . . . Explosions 14 | . . . 14 . Melee 259 | . 59 200 . . Knockbacks 5 | . 4 1 . . Impact 1 | . . 1 . . Kinetic 4 | . 4 . . . Secondary . | . . . . . Self-Inflicted Damage 70 | . . 23 . 47 Shots 3 | . . 1 . 2 Rammed . | . . . . . Targets Rammed 1 | . . 1 . . Kicked 1 | . . 1 . . Crushed . | . . . . . Highest Temperature 515 | . 144 417 338 515 Average Temperature 97 | . 41 112 86 166 Received Heat Transfer 963 | . 63 318 54 528 Effects 9 | . . 4 2 3 Shutdowns 3 | . . 1 . 2 Energy Bleed 3 | . . 3 . . Interference 2 | . . . 2 . Short Circuit 1 | . . . . 1 Siege Activations . | . . . . . Martial Activations . | . . . . . Shielding Activations . | . . . . . Robots Disrupted . | . . . . . Combat Hostiles . | . . . . . Robots Corrupted 4 | . . 4 . . Combat Hostiles 2 | . . 2 . . Parts Fried 5 | . 1 4 . . Impact Corruptions 11 | . 2 9 . . Robots Melted 2 | . . 1 1 . Combat Hostiles 2 | . . 1 1 . Parts Melted 17 | . . 5 5 7 Heat Transferred 5412 | . . 2160 1110 2142 Parts Sabotaged . | . . . . . Parts Stolen . | . . . . . Parts Stripped . | . . . . . Power Chain Reactions 2 | . 1 1 . . Alert | -11 -10 -9 -9 -9 ------- Run | Yrd Mat Mat Sto Gar Maximum Alert Level 2 | . . 1 . 2 Low Security (%) 73 | 100 100 98 100 21 Level 1 9 | . . 1 . 26 Level 2 17 | . . . . 52 Level 3 . | . . . . . Level 4 . | . . . . . Level 5 . | . . . . . High Security . | . . . . . Max Security . | . . . . . Peak Influence 672 | 5 127 248 118 672 Initial 102 | . . 49 102 23 Average 146 | . 25 52 85 361 Influence Increases 2048 | 5 334 696 194 819 Destroy 0b10 Robot/C 1080 | . 160 380 60 480 Destroy 0b10 Robot/NC 95 | 5 30 30 30 . Destroy Leader 186 | . 44 84 38 20 Allied During Kill 8 | . . . 2 6 Successful Hack 73 | . 12 24 2 35 Disable Machine 120 | . 45 45 30 . Anti-Garrison Action 200 | . . . . 200 Destroy Structure 136 | . 13 43 17 63 Partial Spotted 15 | . . . . 15 Lose Combat Pursuer 135 | . 30 90 15 . Influence Decreases 1376 | 5 217 569 402 183 Entered New Map 223 | . . 68 142 13 Time Decay 734 | 5 217 372 140 . Lost Part 174 | . . 24 20 130 Lost Ally 140 | . . . 100 40 Purge Threat 105 | . . 105 . . Squads Dispatched 7 | . 2 3 2 . Investigation 3 | . 1 2 . . Extermination . | . . . . . Reinforcement 3 | . 1 1 1 . Assault . | . . . . . Garrison 1 | . . . 1 . Intercept . | . . . . . Searches Triggered . | . . . . . Construction Impeded . | . . . . . Haulers Reinforced . | . . . . . Active Scanning Responses . | . . . . . Cargo Convoy Interrupts . | . . . . . Stealth | -11 -10 -9 -9 -9 --------- Run | Yrd Mat Mat Sto Gar Distress Signals 5 | . 2 2 1 . Communications Jammed . | . . . . . Distress Signals . | . . . . . Times Spotted 78 | . 19 25 8 26 Peak Tracking Total 8 | . 3 6 3 8 Tactical Retreats 6 | . 2 3 1 . Traps | -11 -10 -9 -9 -9 ------- Run | Yrd Mat Mat Sto Gar Traps Triggered 11 | . 1 2 1 7 Indirectly . | . . . . . Trap Hack Attempts . | . . . . . Triggered . | . . . . . Disarmed . | . . . . . Reprogrammed . | . . . . . Reused . | . . . . . Traps Extracted . | . . . . . Installed . | . . . . . Triggered . | . . . . . Machines | -11 -10 -9 -9 -9 ---------- Run | Yrd Mat Mat Sto Gar Machines Disabled 10 | . 3 3 2 2 Max in Single Turn 1 | . 1 1 1 1 Garrison Relay 2 | . . . . 2 Machines Repaired . | . . . . . Machines Dismantled . | . . . . . Machines Sabotaged . | . . . . . Overloaded Fab Kills . | . . . . . Hacking | -11 -10 -9 -9 -9 --------- Run | Yrd Mat Mat Sto Gar Machines Accessed 17 | . 4 6 4 3 Terminals 12 | . 2 4 3 3 Fabricators . | . . . . . Repair Stations 2 | . 1 1 . . Recycling Units 2 | . 1 1 . . Scanalyzers . | . . . . . Garrison Access 1 | . . . 1 . Total Hacks 48 | . 15 23 7 3 Successful 27 | . 8 14 2 3 Failed 21 | . 7 9 5 . Catastrophic 2 | . 1 . 1 . Database Lockouts . | . . . . . Manual 18 | . 6 11 1 . Terminals 29 | . 6 15 5 3 Fabricators . | . . . . . Repair Stations 10 | . 7 3 . . Recycling Units 7 | . 2 5 . . Scanalyzers . | . . . . . Garrison Access 2 | . . . 2 . Terminal Hacks 12 | . 2 6 1 3 Open Door 2 | . . . 1 1 Level Access Points 1 | . . 1 . . Branch Access Points 1 | . . 1 . . Emergency Access Points 1 | . . . . 1 Terminal Index 2 | . 1 1 . . Unreport Threat 2 | . . 2 . . Locate Traps 2 | . 1 1 . . Patrol Navigation 1 | . . . . 1 Fabricator Hacks . | . . . . . Repair Station Hacks 6 | . 4 2 . . Scan Component 3 | . 2 1 . . Repair 2 | . 1 1 . . Refit 1 | . 1 . . . Recycling Unit Hacks 7 | . 2 5 . . Recycle Component 1 | . . 1 . . Process 3 | . 1 2 . . Report Inventory 1 | . . 1 . . Retrieve Matter 1 | . 1 . . . Retrieve Components 1 | . . 1 . . Scanalyzer . | . . . . . Garrison Access Hacks 1 | . . . 1 . Unlock Access 1 | . . . 1 . Unauthorized Hacks 1 | . . 1 . . Terminals . | . . . . . Fabricators . | . . . . . Repair Stations 1 | . . 1 . . Patch 1 | . . 1 . . Recycling Units . | . . . . . Scanalyzers . | . . . . . Garrison Access . | . . . . . Data Cores Recovered 1 | . 1 . . . Used . | . . . . . Hacking Detections 12 | . 4 6 2 . Full Trace Events 4 | . 1 2 1 . Feedback Events . | . . . . . Feedback Blocked . | . . . . . Robot Schematics Acquired . | . . . . . Robots Built . | . . . . . Authchips . | . . . . . Time . | . . . . . Total Robot Build Rating . | . . . . . Part Schematics Acquired . | . . . . . Parts Built . | . . . . . Authchips . | . . . . . Time . | . . . . . Total Part Build Rating . | . . . . . Parts Repaired 2 | . 1 1 . . Time 70 | . 38 32 . . Parts Recycled 1 | . . 1 . . Recycled Matter 168 | . 166 2 . . Retrieved Matter 232 | . 232 . . . Retrieved Components . | . . . . . Parts Scanalyzed . | . . . . . Part Schematics Acquired . | . . . . . Parts Damaged . | . . . . . Bothacking | -11 -10 -9 -9 -9 ------------ Run | Yrd Mat Mat Sto Gar Used RIF Installer 1 | . . . . 1 Robots Hacked . | . . . . . Non-combat . | . . . . . Combat . | . . . . . Robot Hacks Applied . | . . . . . Relay Couplers Released 13 | . . . . 13 Machine Destruction 9 | . . . . 9 Programmers 4 | . . . . 4 Fabnet Peak Effective % . | . . . . . Robots Rewired . | . . . . . Allies Hacked . | . . . . . Hacks Repelled . | . . . . . Allies | -11 -10 -9 -9 -9 -------- Run | Yrd Mat Mat Sto Gar Total Allies 2 | . . . . 2 Largest Group 2 | . . . . 2 Highest-Rated Group 56 | . . . . 56 Highest-Rated Ally 31 | . . . . 31 Total Orders . | . . . . . Ally Attacks 14 | . . . . 14 Total Damage 266 | . . . . 266 Kills 2 | . . . . 2 Allies Corrupted 1 | . . . . 1 Allies Melted . | . . . . . Intel | -11 -10 -9 -9 -9 ------- Run | Yrd Mat Mat Sto Gar Active Infowar (turns) 2759 | 30 1052 1196 280 201 Optics 1113 | . . 632 280 201 Sensors 1600 | . 883 717 . . Terrain 313 | 30 169 114 . . ECM 12 | . . 12 . . Robot Analysis Total . | . . . . . Derelict Logs Recovered . | . . . . . Drone Launches 19 | . . . 19 . Drone Recoveries 5 | . . . 5 . Exploration | -11 -10 -9 -9 -9 ------------- Run | Yrd Mat Mat Sto Gar Turns Passed 5331 | 85 1722 1467 299 1758 Spaces Moved 1941 | 45 471 538 118 769 Core 12 | 9 3 . . . Treads 654 | 36 75 . . 543 Legs 1275 | . 393 538 118 226 Wheels . | . . . . . Hover . | . . . . . Flight . | . . . . . Fastest Speed 50 | 50 120 120 120 160 Average Speed 145 | 146 127 122 156 169 Slowest Speed 330 | 160 300 190 190 330 Overloaded Moves . | . . . . . Propulsion Burnouts . | . . . . . Robots Hopped . | . . . . . Potential Cave-ins . | . . . . . Cave-ins Triggered . | . . . . . Exploration Rate (%) 37 | 4 52 45 24 61 Regions Visited 4 Branch Regions 1 Pre-discovered Areas . | . . . . . Known Exits Taken 2 | . . 1 1 . Unknown Exits Taken 2 | 1 1 . . . Scrap Searched . | . . . . . Spaces Dug 46 | . 9 26 2 9 Terrain Destroyed 109 | . 12 54 18 25 Melee 39 | . 9 19 2 9 Projectile . | . . . . . AOE 70 | . 3 35 16 16 Terrain Rammed . | . . . . . Walls Destroyed . | . . . . . Machines Disabled . | . . . . . Actions | -11 -10 -9 -9 -9 --------- Run | Yrd Mat Mat Sto Gar Total 3947 | 57 1482 1191 174 1043 Wait 1480 | . 924 482 7 67 Move 1936 | 44 470 537 118 767 Hop . | . . . . . Pick Up 50 | 3 9 16 2 20 Fast Attach 29 | 5 3 7 . 14 Attach 20 | 2 . 8 2 8 Detach 10 | . 1 7 . 2 Swap 57 | 1 11 18 8 19 Drop 36 | . 5 13 1 17 Fire 210 | 2 46 63 26 73 Melee 80 | . 13 39 3 25 Ram . | . . . . . Kick 1 | . . 1 . . Crush . | . . . . . Escape Stasis 28 | . . . . 28 Rewire 3 | . . . . 3 Trap . | . . . . . Miscellaneous 7 | . . . 7 . Route ------- -11/Scrapyard -10/Materials -9/Materials (discovered 5 exits: Mat x3 / Min / *Sto) -9/Storage -9/Garrison (discovered 1 exit: *Mat) History --------- Turn | Location | Event 16 | -11/Scrapyard | Discovered new exit (range 15) 86 | -11/Scrapyard | Entered Materials 293 | -10/Materials | Repaired Imp. Terrain Scanner 314 | -10/Materials | Build established: Mutant 1614 | -10/Materials | Discovered new exit (range 13) 1808 | -10/Materials | Entered another Materials area 1808 | -9/Materials | Evolved 2 slots: Propulsion x1, Utility x1 3060 | -9/Materials | Repaired Imp. Aluminum Leg 3089 | -9/Materials | Identified exit to Mines 3089 | -9/Materials | Identified exit to Storage 3089 | -9/Materials | Identified exit to Materials 3227 | -9/Materials | Destroyed 7 combat bots 3275 | -9/Materials | Entered Storage 3497 | -9/Storage | Garrison activated, responded to threat 3574 | -9/Storage | Identified exit to Garrison 3574 | -9/Storage | Entered Garrison 3574 | -9/Garrison | Accompanied by 3 allies 3591 | -9/Garrison | Lost 8 allies 3782 | -9/Garrison | Core integrity fell below 50% 3825 | -9/Garrison | Lost 4 parts (1p2n1u) 3831 | -9/Garrison | Destroyed 8 combat bots 3866 | -9/Garrison | Triggered checkpoint 3922 | -9/Garrison | Triggered checkpoint 4011 | -9/Garrison | Rescued a captive Derelict 4011 | -9/Garrison | Rescued a captive Derelict 4084 | -9/Garrison | Garrison Relay disabled 4240 | -9/Garrison | Discovered exit to Materials (range 15) 4335 | -9/Garrison | Build established: Scavenger-Mutant 4366 | -9/Garrison | Triggered checkpoint 4423 | -9/Garrison | Lost 3 parts (1n1u1w) 4604 | -9/Garrison | Attempted to access garrison exit controls, blocked by remote lockdown 4773 | -9/Garrison | Installed Relay Interface Framework 5054 | -9/Garrison | Triggered checkpoint 5232 | -9/Garrison | Triggered checkpoint 5246 | -9/Garrison | Core integrity fell below 20% 5292 | -9/Garrison | Garrison Relay disabled 5332 | -9/Garrison | Destroyed by P-60 Hacker with Shock Rifle Last Messages --------------- 05286_ Acquired Hvy. Assault Rifle. 05289_ Dropped Aluminum Leg. 05289_ Acquired Lgt. Treads. 05291_ Acquired 104 matter. 05292_ Garrison Relay disabled. 05292_ Relay Coupler [NC] tumbles out of relay unit. 05292_ Relay Coupler [Swarmer] tumbles out of relay unit. 05292_ Relay Coupler [Demolisher] tumbles out of relay unit. 05292_ Relay Coupler [NC] tumbles out of relay unit. 05300_ Dropped Hvy. Assault Rifle. 05301_ Acquired Shock Rifle. 05303_ System corrupted: Heat flow error (+137). 05303_ Dropped Lgt. Armor Plating. 05304_ Acquired Relay Coupler [Demolisher]. 05306_ Acquired 11 matter. 05311_ Dropped Lgt. Ion Engine. 05311_ Acquired Mic. Nuclear Core. 05312_ P-60 Hacker springs to life. 05319_ SX%TPZJUKBFS RTJUJOO0PRN3BE&G4 05328_ P-60 Hacker destroyed. Map ----- +----------------------------------------------------+ | ???????????????????????????+????# #####?? | | ????????????????????????????????# ??? | | ????????????????????????????????# #???+?? | | ????????????????????????????????# #?????? | | ????????????????????????????????# #?????? | | ????????????????????????????????# #?????? | | ????????????????????????????????# #?????? | | ????????????????????????????????+ +?????? | | ????????????????????????????????# #?????? | | ????????????????????????????????# #?????? | | ????????????????????????????????# #?????? | | ????????????????????????????????# #?????? | | ??????????????????????????####### ####+## | | ??????????????????????????#"""" # | | ??????????????????????????#" | | ??????????????????????????#"""" ########## | | ??????????????????????????#######????????? | | ?????????????????????????????????????????? | | ?????????????????????????????????????????? | | ?????????????????????????????????????????? | | ?????????????????????????????????????????? | | ?????????????????????????????????????????+ | | ?????????+??????####????????????????????? | | ???????+??+######**#????????????????????# | | ??????# [p!=#????????????????????# | | ???????+??+######@!#????????????????????# | | ?????????+????###%!#????????????????????# | | ??????????????#"#!!###??????????????????# | | ??????????????#" [ !#??????????????????# | | ??????????????#=!! [!#??????????????????# | | ??????????????#"! [#??????????????????# | | ??????????????#"#! ###??????????????????# | | ??????????????### #????????????????????# | | ????????????????# ######################" | | ????????????????# ^ | | ????????????????# | | ????????????????###### | | ?????????????????????# ######### #####" | | ?????????????????????# #???????# #???# | | ?????????????????????# #???????# #???# | | ?????????????????????# #?????### #???# | | ?????????????????????# #?????# ##### | | ?????????????????????# #?????# " | | ?????????????????????# #?????# #####" | | ?????????????????????# #?????### ### =! | | ?????????????????????# #???????# * | | ?????????????????????# #???????# * % | | ?????????????????????# #???????######!!! | | ?????????????????????# #????????????#### | | ?????????????????????# #???????????????? | +----------------------------------------------------+ Best States ------------- Heat Dissipation 50 Energy Generation 12 Energy Capacity 265 Matter Stores 300 Matter Capacity 300 Sight Range 18 Robot Scan Range 14 Terrain Scan Range 16 Terrain Scan Density 10 ECM Strength 1 Armor Coverage 150 Evasion (%) 63 Targeting Accuracy 5 Recoil Reduction 2 Item Schematics ----------------- None Robot Schematics ------------------ None Fabricated ------------ Nothing Repaired ---------- Imp. Terrain Scanner | 81% | -10/Materials Imp. Aluminum Leg | 29% | -9/Materials Alien Tech Used ----------------- None Achievements -------------- None Challenges ------------ None Game ------ Seed GhostTransmissionPlating Manual? 0 Play Time 00:56:55 Cumulative 31.4 hours Start 2025.10.14 @ 07:11:52 End 2025.10.14 @ 13:07:04 Sessions 1 Manual Loads 0 Difficulty Rogue Special Mode None Game No. 37 Rogue 37 Adventurer 0 Explorer 0 Win Type - Total 0 Types 0/0/0/0/0/0/0/0/0/0 Lore% 18 Gallery% 26 Achievement% 22 Wizard Run 0 Options --------- Layout 0 ASCII 0 Keyboard 0 Movement Mouse Keybinds 0 Fullscreen 1 Font 36/Smallcaps Map View 76x50 Zoom Use 0% Tactical HUD 1 Map Filters NONE Filters NONE Steam 1 RUN: ffb63439-157b-4b76-a749-584c2dd00575